bitfinex/quotes_ETHUSD_20241001
["timestamp","ask_amount","ask_price","bid_price","bid_amount"]
[1727795360167,0.10375277,2512.0,2510.5,3.98321]
[1727795360319,3.98185,2511.4,2510.6,0.398321]
[1727795360534,3.98185,2511.4,2510.2,3.98367]
[1727795360535,3.98201,2511.3,2510.2,3.98361]
[1727795360725,3.98158,2511.6,2510.5,3.98324]
[1727795360971,7.96449,2511.2,2510.2,3.98368]
[1727795361270,0.55,2511.0,2509.6,2.00094225]
[1727795361424,1.6538,2511.7,2510.4,3.98338]
[1727795361815,3.98193,2511.4,2510.4,3.98338]
[1727795361977,3.98193,2511.4,2509.8,7.70499925]
[1727795361978,4.06143317,2511.4,2510.1,3.98375]
[1727795362262,0.07953317,2511.6,2509.8,0.51309225]
[1727795362479,0.07953317,2511.6,2509.7,0.23994332]
[1727795362480,1.5688,2511.1,2509.7,0.23994332]
[1727795362689,1.5688,2511.1,2509.6,3.98463]
[1727795362690,0.55,2510.6,2509.6,3.98463]
[1727795362868,0.55,2510.6,2509.4,3.98497]
[1727795362869,0.55,2510.5,2509.4,3.98497]
[1727795363026,0.55,2510.5,2509.4,4.49809225]
[1727795363450,0.55,2510.5,2508.9,5.98575]
[1727795363659,0.07953317,2511.0,2508.9,5.98575]
[1727795363660,4.53295,2510.7,2509.6,3.98455]
[1727795363871,0.55,2510.7,2509.7,0.51142559]
[1727795364074,0.55,2510.9,2509.7,0.51142559]
[1727795364367,0.55,2510.5,2509.4,3.98499]
[1727795364577,0.55,2510.5,2509.5,3.98483]
[1727795364578,0.62953317,2510.5,2509.5,3.98483]
[1727795364876,4.53399,2510.1,2509.0,5.35464493]
[1727795365041,0.62953317,2510.1,2508.7,3.98604]
[1727795365245,0.55,2509.3,2508.4,3.98651]
[1727795365450,3.98504,2509.4,2507.9,2.33962959]
[1727795365451,0.55,2509.1,2507.9,2.33962959]
[1727795365795,1.6446,2509.2,2508.4,3.98651]
[1727795365948,0.55,2509.7,2508.9,3.98568]
[1727795366264,0.55,2509.7,2508.9,3.98566]
[1727795366425,0.55,2509.7,2509.0,4.01388083]
[1727795366627,1.6446,2509.8,2509.1,0.5192019]
[1727795366863,1.6446,2509.8,2509.0,3.98555]
[1727795367070,3.9848,2509.6,2508.6,3.98619]
[1727795367231,0.55,2509.1,2508.0,4.34406277]
[1727795367430,0.55,2509.6,2508.2,0.47763399]
[1727795367839,4.53471,2509.6,2508.5,3.98633]
[1727795368068,0.07953317,2509.7,2508.8,3.98591]
[1727795368069,0.55,2509.5,2508.8,3.98591]
[1727795368233,4.53469,2509.7,2508.7,3.98603]
[1727795368433,0.55,2509.7,2508.8,0.07969368]
[1727795368711,1.5054,2510.4,2509.7,3.98446]
[1727795368850,1.5054,2510.4,2510.0,3.98405]
[1727795369036,1.5741,2511.1,2509.8,3.398446]
[1727795369233,1.5741,2511.1,2510.2,3.98365]
[1727795369234,5.5565,2511.1,2510.2,3.98365]
[1727795369459,5.5565,2511.1,2510.2,3.98363]
[1727795369460,1.5741,2511.1,2510.2,3.98363]
[1727795369828,1.5741,2511.7,2510.7,3.98282]
[1727795369962,5.55547,2511.7,2510.6,3.98296]
[1727795370163,5.55547,2511.7,2510.4,3.98328]
[1727795370164,0.07953317,2511.6,2510.0,0.5254011]
[1727795370404,0.07953317,2511.6,2509.8,0.398446]
[1727795370405,1.5741,2511.5,2509.8,4.382746]
[1727795370643,5.55733,2510.6,2509.7,3.98444]
[1727795370820,5.55733,2510.6,2509.3,3.98505]
[1727795370821,3.9835,2510.4,2509.3,3.98505]
[1727795371024,1.65363317,2510.6,2509.3,3.98505]
[1727795371025,3.98384,2510.2,2509.3,3.98505]
[1727795371301,3.98395,2510.1,2509.3,3.98507]
[1727795371511,0.55,2510.0,2509.1,3.9854]
[1727795371719,0.62953317,2510.0,2509.1,3.98547]
[1727795372006,1.6556,2509.7,2508.9,3.98568]
[1727795372216,1.6556,2509.7,2509.2,3.98532]
[1727795372370,1.6556,2509.7,2509.2,3.98519]
[1727795372567,1.6063,2510.2,2509.2,3.98531]
[1727795372765,1.6063,2510.2,2509.3,0.57829934]
[1727795373088,1.6063,2510.2,2509.5,3.98474]
[1727795373301,1.6063,2510.2,2509.7,3.98451]
[1727795373480,0.07953317,2510.8,2510.1,3.9839]
[1727795373481,1.6063,2510.8,2510.1,3.9839]
[1727795373688,1.68583317,2510.8,2509.7,3.98444]
[1727795374024,1.68583317,2510.8,2509.7,3.98442]
[1727795374025,3.98322,2510.6,2509.7,3.98442]
[1727795374366,3.98353,2510.4,2509.5,4.383234]
[1727795374596,3.98353,2510.4,2509.2,3.0]
[1727795374597,0.55,2510.5,2509.6,0.4383234]
[1727795374827,1.6063,2510.8,2510.3,3.98349]
[1727795375111,1.6072,2511.5,2510.7,3.98295]
[1727795375318,1.6072,2511.5,2510.9,3.9825]
[1727795375464,1.6072,2511.5,2511.2,3.98211]
[1727795375670,1.6072,2511.5,2510.6,3.0]
[1727795375671,1.6582,2512.0,2510.6,6.98305]
[1727795375869,1.6582,2512.0,2511.1,3.98219]
[1727795376112,13.95140356,2513.8,2510.9,3.0]
[1727795376419,13.95140356,2513.8,2510.8,1.622]
[1727795376420,1.6225,2512.4,2511.8,6.9812]
[1727795376626,1.6225,2512.9,2511.8,7.02311813]
[1727795376978,1.6225,2513.4,2511.8,9.20257003]
[1727795377123,1.6225,2513.4,2512.7,3.97967]
[1727795377332,1.6225,2513.4,2512.4,3.0]
[1727795377694,1.6225,2513.4,2512.5,3.97997]
[1727795378111,1.70203317,2513.4,2512.0,3.98074]
[1727795378310,3.97946,2512.9,2512.0,3.98074]
[1727795378531,3.97946,2512.9,2511.8,3.98107]
[1727795378532,3.97985,2512.7,2511.8,3.98107]
[1727795378684,3.97985,2512.7,2511.5,3.0]
[1727795378685,3.98013,2512.5,2510.9,1.5374]
[1727795379018,3.98051,2512.3,2511.5,3.98166]
[1727795379325,3.98051,2512.3,2510.7,4.681205]
[1727795379326,3.98151,2511.7,2510.8,3.98267]
[1727795379542,2.129,2512.1,2510.4,3.98332]
[1727795379543,3.98209,2511.3,2510.4,3.98332]
[1727795379825,3.98209,2511.3,2510.0,0.81932959]
[1727795379826,3.98147,2511.7,2510.5,0.07963855]
[1727795380024,3.98162,2511.6,2510.7,3.98282]
[1727795380231,3.98139,2511.7,2510.7,3.98282]
[1727795380441,1.6025,2511.2,2510.0,3.98398]
[1727795380783,1.6025,2511.2,2509.3,2.06931193]
[1727795380784,1.6025,2510.2,2509.2,4.80459959]
[1727795380967,3.98395,2510.1,2509.2,3.98526]
[1727795381093,1.6025,2510.2,2509.0,1.21789759]
[1727795381094,1.6025,2510.2,2509.4,3.98492]
[1727795381293,1.6025,2510.2,2509.3,4.383636]
[1727795381600,1.6025,2510.2,2508.7,1.5988]
[1727795381601,0.55,2510.1,2508.7,3.98605]
[1727795381801,3.98466,2509.7,2508.7,3.98603]
[1727795381993,3.98466,2509.7,2508.5,3.98643]
[1727795381994,0.07953317,2509.6,2508.2,4.43142959]
[1727795382195,1.6025,2510.2,2509.0,3.98563]
[1727795382196,3.98432,2509.9,2509.0,3.98563]
[1727795382589,3.98432,2509.9,2508.9,3.9858]
[1727795382590,3.98423,2509.9,2508.9,3.9858]
[1727795382844,3.98423,2509.9,2508.9,4.38428]
[1727795383140,3.98423,2509.9,2509.1,3.98547]
[1727795383305,1.6025,2510.2,2508.9,0.39858]
[1727795383511,5.66582317,2510.2,2509.2,3.98532]
[1727795383722,5.66582317,2510.2,2508.2,3.98688]
[1727795383723,3.98481,2509.6,2508.2,3.98688]
[1727795384064,3.98559,2509.1,2508.2,3.9868]
[1727795384351,5.71842317,2509.5,2508.4,3.98652]
[1727795384352,5.6389,2509.5,2508.4,3.98652]
[1727795384508,0.07953317,2509.4,2508.3,3.98671]
[1727795384693,1.73353317,2509.5,2508.0,3.98717]
[1727795384893,1.654,2509.5,2508.6,3.98625]
[1727795385128,1.654,2509.5,2508.3,0.41609765]
[1727795385129,1.654,2509.5,2508.8,3.98587]
[1727795385310,1.654,2509.5,2508.6,7.97241]
[1727795385514,3.98505,2509.4,2508.6,3.98619]
[1727795385844,1.654,2509.5,2508.8,3.98595]
[1727795386141,1.654,2509.5,2508.8,4.384545]
[1727795386304,1.654,2509.5,2509.0,3.98565]
[1727795386511,1.654,2509.5,2509.0,3.98555]
[1727795387201,1.654,2509.5,2508.9,3.98576]
[1727795387396,1.654,2509.5,2508.8,4.384495]
[1727795387608,1.654,2509.5,2508.2,0.38941307]
[1727795387609,1.73353317,2509.5,2508.2,3.98685]
[1727795387855,1.73353317,2509.5,2507.4,9.55701814]
[1727795387856,3.98593,2508.9,2508.0,3.9871]
[1727795388035,3.98593,2508.9,2507.1,5.98857]
[1727795388036,1.5065,2508.6,2506.9,2.39802959]
[1727795388256,1.5065,2508.6,2507.2,3.98841]
[1727795388257,3.98702,2508.2,2507.2,3.98841]
[1727795388394,3.98669,2508.4,2507.5,3.98794]
[1727795388596,4.06638317,2508.3,2507.2,3.98844]
[1727795388798,1.5065,2508.6,2507.3,0.07634763]
[1727795389029,1.5065,2508.6,2507.4,7.97622]
[1727795389030,3.98669,2508.4,2507.4,7.97622]
[1727795389207,1.5065,2508.6,2507.4,0.797622]
[1727795389410,4.06598317,2508.5,2507.6,3.98778]
[1727795389643,3.98681,2508.3,2506.8,0.38941307]
[1727795389955,0.07953317,2508.2,2506.8,0.38941307]
[1727795390131,1.5401,2507.6,2506.8,3.98904]
[1727795390345,1.5401,2507.6,2507.0,3.98883]
[1727795390516,1.5401,2507.6,2506.8,4.387964]
[1727795390517,1.5401,2507.6,2506.9,3.98895]
[1727795391036,1.5401,2507.6,2506.8,0.398904]
[1727795391193,1.5401,2507.6,2507.3,3.98832]
[1727795391399,1.5401,2508.1,2507.9,3.98735]
[1727795391638,3.98556,2509.1,2507.4,0.42775134]
[1727795391639,1.61963317,2508.6,2507.4,0.38941307]
[1727795391841,1.5401,2508.6,2507.9,3.98729]
[1727795392045,3.98749,2507.9,2506.2,0.3993]
[1727795392253,3.98732,2508.0,2507.1,3.98864]
[1727795392545,3.98732,2508.0,2505.9,0.81932959]
[1727795392546,1.5401,2508.4,2507.3,3.9883]
[1727795392700,1.5401,2508.4,2508.0,3.98722]
[1727795393043,3.98605,2508.8,2508.0,3.98722]
[1727795393044,1.5401,2508.9,2508.3,3.98667]
[1727795393255,3.98655,2508.5,2507.7,3.98771]
[1727795393556,3.98716,2508.1,2507.3,3.98826]
[1727795393766,3.98601,2508.8,2507.3,3.98826]
[1727795393767,5.52563,2508.2,2507.3,3.98822]
[1727795393900,3.98804,2507.5,2506.7,3.9892]
[1727795394212,3.98804,2507.5,2506.2,3.99005]
[1727795394213,1.6582,2507.5,2506.8,3.98913]
[1727795394417,1.6582,2507.5,2506.2,0.3993]
[1727795394743,1.6582,2507.5,2506.7,3.98919]
[1727795394950,5.64633,2507.5,2506.7,3.98919]
[1727795395256,5.64633,2507.5,2506.5,3.98951]
[1727795395257,3.98844,2507.3,2506.5,3.98951]
[1727795395763,3.98852,2507.2,2506.5,3.98951]
[1727795395917,3.98844,2507.3,2506.6,3.98933]
[1727795396120,3.98844,2507.3,2505.8,2.0]
[1727795396121,0.07953317,2507.2,2506.3,3.98981]
[1727795396417,5.52407,2506.8,2506.1,3.99015]
[1727795396779,3.98932,2506.7,2505.9,3.99046]
[1727795396942,3.98972,2506.5,2505.7,3.99075]
[1727795397139,1.5349,2506.8,2505.0,0.35267392]
[1727795397140,4.06932317,2506.4,2505.5,3.99111]
[1727795397455,0.07953317,2506.3,2504.7,1.6267]
[1727795397620,1.61,2506.1,2505.4,3.99129]
[1727795397821,1.68953317,2506.1,2505.2,3.99153]
[1727795398049,1.61,2506.1,2505.3,0.07961082]
[1727795398358,1.61,2506.1,2505.3,3.99149]
[1727795398574,1.61,2506.1,2505.6,3.99105]
[1727795398717,1.61,2506.1,2506.0,3.99042]
[1727795398917,1.61,2506.1,2505.4,4.390459]
[1727795398918,1.562,2506.6,2505.4,0.399149]
[1727795399118,1.562,2506.6,2505.7,3.99074]
[1727795399351,1.562,2506.6,2506.0,3.99032]
[1727795399528,1.562,2506.6,2505.6,3.99104]
[1727795399529,1.562,2506.6,2505.9,3.99046]
[1727795399743,1.562,2506.6,2506.0,3.99034]
[1727795400058,1.64153317,2506.6,2505.9,6.99058]
[1727795400361,1.64153317,2506.6,2506.0,3.99041]
[1727795400362,1.562,2506.6,2506.0,3.99041]
[1727795400570,1.562,2506.6,2505.6,3.0]
[1727795400571,1.562,2506.6,2506.1,3.99016]
[1727795400864,1.562,2506.6,2505.8,6.84073]
[1727795400865,4.06928317,2506.5,2505.8,6.84073]
[1727795401047,3.98768,2507.8,2506.3,3.98982]
[1727795401048,3.98876,2507.1,2506.3,3.98982]
[1727795401255,3.98698,2508.2,2505.8,1.083151]
[1727795401256,0.07953317,2507.0,2505.8,1.083151]
[1727795401560,3.98629,2508.6,2505.9,0.04987526]
[1727795401561,3.9887,2507.1,2505.9,0.04987526]
[1727795401723,3.98843,2507.3,2506.4,3.98974]
[1727795401923,3.98843,2507.3,2505.4,0.399149]
[1727795401924,0.07953317,2507.2,2506.2,3.99005]
[1727795402266,7.73412843,2508.5,2506.7,3.98929]
[1727795402267,3.98813,2507.5,2506.7,3.98929]
[1727795402569,0.07953317,2507.8,2506.8,3.98912]
[1727795402570,3.98777,2507.7,2506.8,3.98912]
[1727795402716,3.98777,2507.7,2506.9,3.98886]
[1727795402717,0.07953317,2507.6,2506.9,3.98886]
[1727795402928,3.98701,2508.2,2507.3,3.98824]
[1727795403122,11.71970843,2509.1,2506.9,0.67176724]
[1727795403123,3.98647,2508.5,2507.5,3.98801]
[1727795403418,3.98478,2509.6,2507.5,3.98801]
[1727795403419,0.07953317,2508.6,2507.9,3.98727]
[1727795403642,3.98587,2508.9,2508.0,0.07930647]
[1727795403835,3.98587,2508.9,2507.9,3.98727]
[1727795403836,1.5997,2508.7,2507.9,3.98727]
[1727795404045,1.5997,2508.7,2507.7,3.98768]
[1727795404046,4.06597317,2508.6,2507.7,3.98768]
[1727795404224,4.06597317,2508.6,2507.0,3.98871]
[1727795404225,3.98756,2507.8,2507.0,3.98871]
[1727795404431,1.5802,2508.3,2506.6,3.98935]
[1727795404432,3.98807,2507.5,2506.6,3.98935]
[1727795404676,0.07953317,2507.7,2506.8,3.98899]
[1727795404823,0.07953317,2507.7,2506.7,3.98917]
[1727795404824,3.98804,2507.5,2506.7,3.98917]
[1727795405165,3.54206333,2508.9,2506.0,1.6586]
[1727795405166,1.5802,2507.3,2506.0,1.6586]
[1727795405458,1.5802,2507.3,2506.8,3.98904]
[1727795405660,1.5802,2507.3,2506.4,3.98975]
[1727795405880,1.5802,2507.3,2505.9,0.598784]
[1727795405881,0.07953317,2507.2,2505.9,0.199484]
[1727795406036,3.98997,2506.3,2505.9,0.199484]
[1727795406227,5.57062,2506.0,2505.9,0.199484]
[1727795406449,5.57062,2506.0,2504.4,0.1221223]
[1727795406450,1.5802,2505.4,2504.6,3.99265]
[1727795406682,3.9918,2505.2,2504.4,0.1221223]
[1727795407012,3.98997,2506.3,2504.4,0.1221223]
[1727795407013,1.5802,2505.0,2504.4,0.1221223]
[1727795407189,5.57301,2504.5,2504.4,0.1221223]
[1727795407339,5.65254317,2504.5,2504.4,0.1221223]
[1727795408024,5.65254317,2504.5,2502.7,4.00067]
[1727795408025,3.99323,2504.3,2503.5,3.9944]
[1727795408243,1.5802,2504.5,2503.7,3.99406]
[1727795408445,1.5802,2504.5,2503.7,3.99404]
[1727795408766,1.5802,2504.5,2503.3,3.99469]
[1727795408953,1.5802,2504.5,2502.9,3.99531]
[1727795409177,3.99423,2503.7,2501.9,0.1221223]
[1727795409385,3.99361,2504.0,2501.9,0.1221223]
[1727795409386,1.6378,2503.3,2501.9,0.1221223]
[1727795409597,3.99534,2503.0,2501.9,0.1221223]
[1727795409902,5.63332,2502.8,2501.9,0.1221223]
[1727795410195,1.6378,2502.7,2501.9,0.1221223]
[1727795410484,11.76688545,2503.0,2501.9,0.1221223]
[1727795410485,5.6337,2502.0,2501.9,0.1221223]
[1727795410696,5.6337,2502.0,2500.3,3.99943]
[1727795410697,1.6369,2501.5,2500.3,3.99943]
[1727795410899,1.6369,2501.5,2500.0,3.99996]
[1727795411115,1.6369,2501.5,2499.5,0.1221223]
[1727795411117,3.99814,2501.2,2499.5,0.1221223]
[1727795411396,3.99892,2500.7,2499.5,4.1229123]
[1727795411571,3.99892,2500.7,2498.1,0.41682427]
[1727795411572,1.6369,2499.4,2498.1,0.41682427]
[1727795411766,0.55,2500.7,2498.1,0.41682427]
[1727795411767,1.5253,2500.2,2498.1,0.41682427]
[1727795411950,1.5253,2500.2,2498.9,4.00175]
[1727795412153,1.5253,2500.2,2499.0,5.00732307]
[1727795412365,1.5253,2500.2,2499.0,0.44257807]
[1727795412687,1.5253,2500.2,2498.6,3.85222]
[1727795412688,4.00036,2499.8,2498.6,3.85222]
[1727795412997,4.00001,2500.0,2497.9,4.00333]
[1727795412998,4.00132,2499.2,2497.9,4.00333]
[1727795413307,6.99931,2500.5,2497.9,4.00333]
[1727795413308,1.6565,2499.3,2499.2,3.84943829]
[1727795413512,1.6565,2499.3,2499.2,1.67158476]
[1727795413513,5.65762,2499.3,2499.2,1.67158476]
[1727795413661,5.65762,2499.3,2497.5,0.0969025]
[1727795413662,3.0,2499.0,2497.5,0.0969025]
[1727795413862,4.00384,2497.6,2497.5,0.0969025]
[1727795414059,4.00384,2497.6,2495.6,0.0777]
[1727795414060,4.00502,2496.9,2495.6,0.0777]
[1727795414362,4.00417,2497.4,2495.6,0.0777]
[1727795414363,4.0042,2497.4,2495.6,0.0777]
[1727795414568,4.00689,2495.7,2495.6,0.0777]
[1727795414784,7.55785,2495.1,2495.0,0.1]
[1727795414984,7.55785,2495.1,2493.2,0.035]
[1727795414985,4.01187,2492.6,2492.5,9.68694417]
[1727795415182,5.53273,2492.5,2492.0,0.00400325]
[1727795415418,4.0117,2492.8,2492.0,0.00400325]
[1727795415584,4.0117,2492.8,2490.3,4.31043388]
[1727795415585,4.01064,2493.4,2490.3,4.31043388]
[1727795415586,3.0,2492.5,2490.3,4.31043388]
[1727795415792,3.55,2491.6,2490.3,4.31043388]
[1727795415978,4.01274,2492.1,2490.3,4.31043388]
[1727795415979,1.5223,2491.5,2490.3,4.31043388]
[1727795416179,7.77157545,2492.9,2490.3,4.31043388]
[1727795416180,1.5223,2492.6,2491.0,0.05]
[1727795416425,7.77157545,2494.6,2490.4,7.77157545]
[1727795416426,1.5829,2493.6,2491.4,1.651]
[1727795416585,1.5829,2493.6,2490.4,0.05]
[1727795416586,1.5829,2493.9,2491.5,0.49760777]
[1727795416787,1.5829,2493.9,2491.7,4.01322]
[1727795417029,4.01019,2493.7,2491.8,0.86737644]
[1727795417296,1.5829,2493.9,2491.3,9.00060569]
[1727795417297,1.5762,2493.5,2491.9,0.32575085]
[1727795417474,1.5762,2493.5,2490.3,4.31043388]
[1727795417475,4.01191,2492.6,2490.3,4.31043388]
[1727795417805,4.01511,2490.6,2490.3,4.31043388]
[1727795417996,6.014,2491.3,2490.3,4.31043388]
[1727795417997,4.01505,2490.7,2490.3,3.83601407]
[1727795418227,4.01527,2490.5,2490.3,3.83601407]
[1727795418368,6.06622,2489.9,2489.8,0.1248975]
[1727795418720,6.06622,2489.9,2486.7,7.77157545]
[1727795418721,4.01762,2489.1,2487.3,0.08270151]
[1727795418929,4.01609,2490.0,2487.4,0.0918917]
[1727795418930,4.06693,2489.5,2487.4,0.0918917]
[1727795419234,3.0,2489.7,2487.3,0.08270151]
[1727795419235,3.0,2488.2,2487.3,0.08270151]
[1727795419519,3.0,2487.7,2487.3,0.08270151]
[1727795419659,3.0,2487.7,2485.3,7.77157545]
[1727795419660,4.06873,2488.4,2486.7,0.43470183]
[1727795419661,4.01,2487.9,2486.7,0.43470183]
[1727795420020,4.01,2487.9,2485.0,4.0241]
[1727795420021,4.06996,2487.6,2485.0,4.0241]
[1727795420179,0.41231892,2488.2,2484.4,0.22468169]
[1727795420180,2.05,2489.4,2487.0,7.77157545]
[1727795420469,2.05,2489.4,2485.1,13.79986404]
[1727795420470,0.8954,2490.2,2488.3,7.77157545]
[1727795420661,0.8954,2490.2,2487.1,2.14437533]
[1727795420662,0.8954,2490.2,2488.4,0.5611359]
[1727795420856,0.8954,2490.2,2488.1,4.01908]
[1727795421056,0.8954,2490.2,2488.8,4.01799]
[1727795421285,0.8954,2490.2,2488.2,4.01892]
[1727795421468,0.8954,2490.2,2488.4,4.0185]
[1727795421688,0.8954,2490.2,2488.2,3.0]
[1727795421893,0.8954,2490.2,2487.0,4.02075]
[1727795421894,0.8954,2489.9,2487.0,4.02088]
[1727795422122,0.8954,2489.9,2486.0,4.0225]
[1727795422123,2.05,2489.7,2486.6,4.02152]
[1727795422314,2.05,2489.7,2486.0,4.02242]
[1727795422315,0.8954,2489.0,2487.6,4.0198]
[1727795422493,0.8954,2489.0,2486.7,0.91359177]
[1727795422832,0.8954,2489.0,2486.1,4.02235]
[1727795423048,2.95820565,2488.9,2486.8,4.02113]
[1727795423350,0.8954,2489.0,2487.5,4.01999]
[1727795423531,0.8954,2489.9,2488.1,4.01903]
[1727795423730,0.8954,2490.6,2488.4,7.77157545]
[1727795423956,0.8954,2490.6,2488.6,4.0183]
[1727795424095,0.8954,2490.6,2488.3,7.77157545]
[1727795424404,0.8954,2490.6,2489.3,4.01712]
[1727795424609,0.8954,2490.6,2488.9,3.0]
[1727795424935,0.8954,2491.2,2490.0,4.01594]
[1727795425246,0.8954,2491.2,2490.3,4.01545]
[1727795425443,0.8954,2492.0,2490.6,4.01504]
[1727795425595,0.8954,2492.0,2490.4,4.0154]
[1727795425793,0.8954,2492.0,2490.1,7.77157545]
[1727795425794,0.8954,2492.0,2490.8,4.0147]
[1727795425999,0.8954,2492.0,2490.3,4.01557]
[1727795426208,0.8954,2492.0,2489.4,1.6139]
[1727795426209,0.8954,2492.0,2489.6,4.01657]
[1727795426525,0.8954,2492.0,2488.9,8.07157545]
[1727795426526,1.29867382,2491.9,2489.7,4.01643]
[1727795426725,1.29867382,2491.9,2489.7,0.401643]
[1727795426895,0.8954,2491.9,2489.7,4.01654]
[1727795427128,0.8954,2491.9,2489.9,3.0]
[1727795427329,0.8954,2491.9,2489.9,4.01616]
[1727795427533,0.8954,2491.9,2489.6,3.0]
[1727795427534,0.8954,2491.9,2490.0,4.01593]
[1727795427776,0.8954,2491.9,2489.6,3.0]
[1727795427973,0.8954,2491.9,2490.1,4.01579]
[1727795428129,0.8954,2491.9,2489.9,3.0]
[1727795428332,0.8954,2491.9,2490.1,3.0]
[1727795428673,0.8954,2491.9,2490.7,7.77157545]
[1727795428981,2.06534666,2495.1,2490.4,3.55]
[1727795428982,0.8954,2493.5,2492.1,4.01267]
[1727795429197,0.8954,2493.5,2491.4,3.0]
[1727795429484,0.8954,2493.5,2490.5,4.0151]
[1727795429485,0.8954,2493.3,2490.5,4.0151]
[1727795429722,4.01359,2491.6,2490.3,4.01546]
[1727795429847,4.01359,2491.6,2489.4,5.61477]
[1727795429848,0.8954,2491.2,2488.9,8.07157545]
[1727795430055,0.8954,2491.2,2489.4,4.01697]
[1727795430056,4.01476,2490.9,2489.4,4.01697]
[1727795430347,4.01476,2490.9,2488.2,4.420863]
[1727795430348,4.0156,2490.3,2488.2,0.401903]
[1727795430561,4.0156,2490.3,2488.9,4.0177]
[1727795430777,4.01323,2491.8,2488.9,4.0177]
[1727795430778,4.90692,2492.9,2491.2,4.01398]
[1727795431091,4.90692,2492.9,2490.5,1.5926]
[1727795431092,0.8954,2492.9,2491.9,4.01287]
[1727795431384,0.8954,2492.9,2490.5,1.5926]
[1727795431385,0.8954,2492.9,2491.3,4.01394]
[1727795431686,0.41916783,2493.4,2491.2,4.01411]
[1727795431687,0.8954,2492.5,2491.2,4.01411]
[1727795431919,0.8954,2492.5,2491.6,4.01347]
[1727795432039,0.8954,2492.5,2491.3,4.01395]
[1727795432040,0.8954,2493.3,2491.7,3.0]
[1727795432250,0.8954,2493.3,2491.3,4.01385]
[1727795432251,0.41916783,2493.4,2492.5,4.01202]
[1727795432470,0.41916783,2493.4,2493.0,3.0]
[1727795432686,0.41916783,2493.4,2492.9,4.0113]
[1727795432869,2.43567529,2495.5,2491.9,0.05]
[1727795432870,0.8954,2495.1,2492.6,4.5392]
[1727795433059,0.8954,2495.1,2492.7,0.55]
[1727795433245,0.8954,2495.1,2493.4,4.01055]
[1727795433592,0.8954,2495.1,2492.6,2.05407001]
[1727795433593,0.8954,2495.1,2492.8,4.01152]
[1727795433759,0.8954,2495.1,2492.3,4.01228]
[1727795433760,0.40376563,2495.0,2493.3,4.01069]
[1727795434099,0.39600381,2495.0,2492.2,1.5289]
[1727795434254,0.8954,2494.2,2491.4,1.5323]
[1727795434605,0.8954,2493.9,2492.1,4.01259]
[1727795434890,0.8954,2493.9,2491.8,4.01312]
[1727795434891,1.61492148,2493.3,2491.8,4.01312]
[1727795435102,1.61492148,2493.3,2491.5,0.50272298]
[1727795435256,1.61492148,2493.3,2491.0,2.0]
[1727795435257,0.8954,2493.2,2490.7,1.5985]
[1727795435447,0.8954,2493.2,2490.8,4.01475]
[1727795435759,0.8954,2493.2,2491.8,4.01311]
[1727795436083,0.8954,2493.2,2490.8,0.48010348]
[1727795436084,0.8954,2493.1,2490.4,2.0]
[1727795436287,0.8954,2493.1,2490.6,2.3993]
[1727795436453,0.8954,2493.1,2491.6,4.01347]
[1727795436638,0.8954,2493.1,2490.5,8.16759318]
[1727795436639,3.8954,2492.7,2491.0,4.01439]
[1727795436845,1.61492148,2493.3,2491.3,4.01396]
[1727795436846,0.8954,2492.4,2491.3,4.01396]
[1727795437042,0.8954,2492.4,2491.5,4.01361]
[1727795437297,0.8954,2492.4,2491.0,4.01437]
[1727795437510,3.0,2492.7,2489.7,4.01646]
[1727795437511,3.8954,2492.0,2489.7,4.01648]
[1727795437738,3.8954,2492.0,2489.2,7.77157545]
[1727795437739,0.8954,2491.5,2489.9,4.01619]
[1727795438006,0.8954,2491.5,2490.2,4.01559]
[1727795438231,0.8954,2491.5,2489.2,4.01726]
[1727795438523,4.51486906,2492.5,2487.7,2.06662465]
[1727795438524,0.8954,2492.7,2490.9,9.77157545]
[1727795438717,4.00866,2494.6,2490.4,1.675]
[1727795438718,2.51032148,2493.3,2492.6,4.01184]
[1727795438996,2.51032148,2493.3,2491.8,1.625]
[1727795438997,1.61492148,2493.3,2491.8,0.25618735]
[1727795439206,1.61492148,2493.3,2492.2,4.01242]
[1727795439415,1.61492148,2493.3,2491.8,0.25618735]
[1727795439416,1.61492148,2493.3,2491.8,4.01311]
[1727795439561,1.61492148,2493.3,2492.3,0.55]
[1727795439765,1.61492148,2493.3,2493.1,4.01106]
[1727795439962,1.61492148,2493.3,2492.3,0.55]
[1727795440160,1.61492148,2493.3,2492.2,3.0]
[1727795440386,1.61492148,2493.3,2493.1,4.01098]
[1727795440592,1.61492148,2493.3,2492.5,4.01198]
[1727795440800,1.61492148,2493.3,2492.5,4.01197]
[1727795441036,1.61492148,2493.3,2491.9,4.01295]
[1727795441037,1.61492148,2493.3,2492.4,4.01203]
[1727795441193,1.61492148,2493.3,2492.3,4.01232]
[1727795441406,0.8954,2494.4,2493.2,7.77157545]
[1727795441672,0.8954,2495.3,2493.3,1.00929959]
[1727795441939,0.8954,2495.3,2493.1,0.05]
[1727795441940,0.8954,2495.3,2493.4,7.77157545]
[1727795442124,0.5816211,2495.2,2493.5,4.01028]
[1727795442334,0.5816211,2495.2,2492.5,4.01201]
[1727795442335,0.8954,2494.5,2492.5,4.01201]
[1727795442628,0.8954,2494.5,2492.1,4.01256]
[1727795442629,0.8954,2494.0,2492.4,4.0121]
[1727795442849,0.8954,2494.0,2491.8,4.01304]
[1727795442850,0.8954,2494.0,2491.6,5.65575]
[1727795442991,0.8954,2494.0,2491.9,2.0]
[1727795443197,0.8954,2494.0,2493.5,4.01036]
[1727795443499,4.00664,2495.9,2492.9,4.01133]